[Event "Titled Tuesday Blitz March 29 Late 2022"]
[White "Oganian, Miran"]
[Black "Bibasa, Bob"]
[WhiteFideId "4122488"]
[BlackFideId "10000240"]
[WhiteElo "2357"]
[BlackElo "2056"]
[Result "1-0"]
[Round "01"]
[TimeControl "180+1"]
[Date "2022.03.30"]
[WhiteClock "0:01:18"]
[BlackClock "0:00:33"]

1. e4 {[%clk 0:03:00]}  c5 {[%clk 0:03:00]} 2. Nf3 {[%clk 0:03:00]}  d6 {[%clk 0:03:00]} 3. Bb5+ {[%clk 0:03:00]}  Nd7 {[%clk 0:03:00]} 4. d4 {[%clk 0:03:00]}  cxd4 {[%clk 0:03:00]} 5. Qxd4 {[%clk 0:03:01]}  a6 {[%clk 0:02:56]} 6. Bxd7+ {[%clk 0:03:01]}  Bxd7 {[%clk 0:02:56]} 7. c4 {[%clk 0:03:01]}  Nf6 {[%clk 0:02:56]} 8. Nc3 {[%clk 0:03:01]}  g6 {[%clk 0:02:56]} 9. Bg5 {[%clk 0:02:59]}  Bg7 {[%clk 0:02:56]} 10. O-O {[%clk 0:03:00]}  O-O {[%clk 0:02:56]} 11. Qd3 {[%clk 0:03:00]}  Bc6 {[%clk 0:02:55]} 12. Rfe1 {[%clk 0:02:58]}  Nd7 {[%clk 0:02:52]} 13. Rad1 {[%clk 0:02:57]}  Nc5 {[%clk 0:02:51]} 14. Qe3 {[%clk 0:02:52]}  Qc7 {[%clk 0:02:44]} 15. b3 {[%clk 0:02:44]}  Bxc3 {[%clk 0:02:40]} 16. Qxc3 {[%clk 0:02:42]}  Nxe4 {[%clk 0:02:40]} 17. Rxe4 {[%clk 0:02:42]}  Bxe4 {[%clk 0:02:41]} 18. Bh6 {[%clk 0:02:41]}  e5 {[%clk 0:02:39]} 19. Ng5 {[%clk 0:02:39]}  Bc6 {[%clk 0:02:32]} 20. Qh3 {[%clk 0:02:32]}  f6 {[%clk 0:01:53]} 21. Bxf8 {[%clk 0:02:29]}  Rxf8 {[%clk 0:01:29]} 22. Ne6 {[%clk 0:02:28]}  Qe7 {[%clk 0:01:28]} 23. Nxf8 {[%clk 0:02:25]}  Kxf8 {[%clk 0:01:29]} 24. Qd3 {[%clk 0:02:24]}  Kg7 {[%clk 0:01:22]} 25. Qxd6 {[%clk 0:02:23]}  Qe8 {[%clk 0:01:20]} 26. h4 {[%clk 0:02:03]}  Qc8 {[%clk 0:01:17]} 27. Qe7+ {[%clk 0:02:02]}  Kh6 {[%clk 0:01:15]} 28. Qxf6 {[%clk 0:02:01]}  Qg4 {[%clk 0:01:11]} 29. Qg5+ {[%clk 0:02:00]}  Qxg5 {[%clk 0:01:11]} 30. hxg5+ {[%clk 0:02:01]}  Kxg5 {[%clk 0:01:12]} 31. Rd8 {[%clk 0:01:50]}  h5 {[%clk 0:01:07]} 32. f3 {[%clk 0:01:48]}  e4 {[%clk 0:01:05]} 33. fxe4 {[%clk 0:01:38]}  Bxe4 {[%clk 0:01:05]} 34. b4 {[%clk 0:01:36]}  Kf4 {[%clk 0:01:02]} 35. a4 {[%clk 0:01:34]}  g5 {[%clk 0:00:56]} 36. b5 {[%clk 0:01:31]}  axb5 {[%clk 0:00:54]} 37. cxb5 {[%clk 0:01:30]}  h4 {[%clk 0:00:38]} 38. a5 {[%clk 0:01:27]}  Kg3 {[%clk 0:00:35]} 39. a6 {[%clk 0:01:24]}  bxa6 {[%clk 0:00:34]} 40. bxa6 {[%clk 0:01:25]}  Bxg2 {[%clk 0:00:34]} 41. Rd3+ {[%clk 0:01:25]}  Bf3 {[%clk 0:00:35]} 42. Rxf3+ {[%clk 0:01:25]}  Kxf3 {[%clk 0:00:35]} 43. a7 {[%clk 0:01:26]}  g4 {[%clk 0:00:33]} 44. a8=Q+ {[%clk 0:01:27]}  Kg3 {[%clk 0:00:33]} 45. Qa3+ {[%clk 0:01:16]}  Kf4 {[%clk 0:00:33]} 46. Qb4+ {[%clk 0:01:16]}  Kg3 {[%clk 0:00:33]} 47. Qc3+ {[%clk 0:01:16]}  Kf4 {[%clk 0:00:33]} 48. Qd4+ {[%clk 0:01:17]}  Kg5 {[%clk 0:00:34]} 49. Qe5+ {[%clk 0:01:17]}  Kg6 {[%clk 0:00:33]} 50. Kg2 {[%clk 0:01:18]} 1-0


[Site "https://www.chess.com"]

[Event "Titled Tuesday Blitz March 29 Late 2022"]
[White "Petrova, Irina"]
[Black "Karttunen, Mika"]
[WhiteFideId "14124122"]
[BlackFideId "502081"]
[WhiteElo "1993"]
[BlackElo "2343"]
[Result "0-1"]
[Round "01"]
[TimeControl "180+1"]
[Date "2022.03.30"]
[WhiteClock "0:00:08"]
[BlackClock "0:00:50"]

1. e4 {[%clk 0:03:00]}  c5 {[%clk 0:02:59]} 2. Nf3 {[%clk 0:03:00]}  d6 {[%clk 0:03:00]} 3. Bb5+ {[%clk 0:03:00]}  Bd7 {[%clk 0:02:59]} 4. Bxd7+ {[%clk 0:03:00]}  Qxd7 {[%clk 0:03:00]} 5. c4 {[%clk 0:03:00]}  Nc6 {[%clk 0:03:00]} 6. d4 {[%clk 0:02:59]}  cxd4 {[%clk 0:03:00]} 7. Nxd4 {[%clk 0:03:00]}  Nf6 {[%clk 0:03:00]} 8. Nc3 {[%clk 0:03:00]}  g6 {[%clk 0:03:00]} 9. f3 {[%clk 0:03:00]}  Bg7 {[%clk 0:03:00]} 10. Be3 {[%clk 0:03:01]}  O-O {[%clk 0:03:00]} 11. O-O {[%clk 0:03:00]}  Rfc8 {[%clk 0:03:00]} 12. b3 {[%clk 0:02:58]}  Qd8 {[%clk 0:02:42]} 13. Rc1 {[%clk 0:02:57]}  a6 {[%clk 0:02:41]} 14. Qd3 {[%clk 0:02:56]}  Nd7 {[%clk 0:02:34]} 15. Nxc6 {[%clk 0:02:44]}  Rxc6 {[%clk 0:02:32]} 16. Rfd1 {[%clk 0:02:35]}  Rac8 {[%clk 0:02:32]} 17. Nd5 {[%clk 0:02:32]}  Nc5 {[%clk 0:02:08]} 18. Qe2 {[%clk 0:02:27]}  a5 {[%clk 0:02:03]} 19. Bg5 {[%clk 0:02:11]}  f6 {[%clk 0:02:03]} 20. Be3 {[%clk 0:02:10]}  Qe8 {[%clk 0:01:51]} 21. Qe1 {[%clk 0:01:58]}  Ra6 {[%clk 0:01:44]} 22. Nf4 {[%clk 0:01:46]}  Qf7 {[%clk 0:01:32]} 23. Nd3 {[%clk 0:01:37]}  Nxd3 {[%clk 0:01:29]} 24. Rxd3 {[%clk 0:01:38]}  a4 {[%clk 0:01:29]} 25. Qb4 {[%clk 0:01:27]}  Rc7 {[%clk 0:01:20]} 26. Bd4 {[%clk 0:01:26]}  Qe8 {[%clk 0:01:20]} 27. Rdd1 {[%clk 0:01:17]}  Qc6 {[%clk 0:01:20]} 28. Qb5 {[%clk 0:01:13]}  Bh6 {[%clk 0:01:20]} 29. Rb1 {[%clk 0:00:57]}  Qxb5 {[%clk 0:01:19]} 30. cxb5 {[%clk 0:00:58]}  Ra8 {[%clk 0:01:19]} 31. g3 {[%clk 0:00:29]}  axb3 {[%clk 0:01:11]} 32. axb3 {[%clk 0:00:28]}  Rc2 {[%clk 0:01:09]} 33. f4 {[%clk 0:00:21]}  Raa2 {[%clk 0:01:06]} 34. Rdc1 {[%clk 0:00:19]}  Rg2+ {[%clk 0:01:05]} 35. Kf1 {[%clk 0:00:19]}  Rxh2 {[%clk 0:01:06]} 36. Rc8+ {[%clk 0:00:16]}  Kf7 {[%clk 0:01:06]} 37. Rc7 {[%clk 0:00:15]}  g5 {[%clk 0:01:00]} 38. f5 {[%clk 0:00:11]}  g4 {[%clk 0:01:00]} 39. Re1 {[%clk 0:00:10]}  Bd2 {[%clk 0:00:53]} 40. Re2 {[%clk 0:00:08]}  Rxe2 {[%clk 0:00:49]} 41. Kxe2 {[%clk 0:00:08]}  Ba5+ {[%clk 0:00:50]} 0-1


[Site "https://www.chess.com"]

[Event "Titled Tuesday Blitz March 29 Late 2022"]
[White "Plotnikov, Pavel"]
[Black "Bortnyk, Olexandr"]
[WhiteFideId "4170342"]
[BlackFideId "14120828"]
[WhiteElo "2298"]
[BlackElo "2723"]
[Result "0-1"]
[Round "01"]
[TimeControl "180+1"]
[Date "2022.03.29"]
[WhiteClock "0:00:01"]
[BlackClock "0:00:10"]

1. e4 {[%clk 0:03:00]}  d6 {[%clk 0:02:57]} 2. d4 {[%clk 0:03:00]}  Nf6 {[%clk 0:02:57]} 3. Nc3 {[%clk 0:03:00]}  Nbd7 {[%clk 0:02:58]} 4. Nf3 {[%clk 0:02:59]}  e5 {[%clk 0:02:58]} 5. Bc4 {[%clk 0:02:59]}  Be7 {[%clk 0:02:58]} 6. O-O {[%clk 0:02:57]}  h6 {[%clk 0:02:58]} 7. a4 {[%clk 0:02:56]}  c6 {[%clk 0:02:58]} 8. a5 {[%clk 0:02:54]}  Qc7 {[%clk 0:02:58]} 9. h3 {[%clk 0:02:53]}  g5 {[%clk 0:02:58]} 10. dxe5 {[%clk 0:02:49]}  dxe5 {[%clk 0:02:57]} 11. Be3 {[%clk 0:02:49]}  Nf8 {[%clk 0:02:56]} 12. Nd2 {[%clk 0:02:32]}  Ng6 {[%clk 0:02:46]} 13. Nb3 {[%clk 0:02:28]}  g4 {[%clk 0:02:45]} 14. hxg4 {[%clk 0:02:26]}  Nxg4 {[%clk 0:02:45]} 15. Qf3 {[%clk 0:02:21]}  Bg5 {[%clk 0:02:31]} 16. Rad1 {[%clk 0:02:08]}  Nh4 {[%clk 0:02:02]} 17. Qg3 {[%clk 0:02:04]}  Nxe3 {[%clk 0:02:01]} 18. fxe3 {[%clk 0:02:04]}  f6 {[%clk 0:01:36]} 19. Nc5 {[%clk 0:01:56]}  Qxa5 {[%clk 0:01:32]} 20. Ne6 {[%clk 0:01:52]}  Bxe6 {[%clk 0:01:28]} 21. Bxe6 {[%clk 0:01:52]}  Qc5 {[%clk 0:01:16]} 22. Rd3 {[%clk 0:01:50]}  Rd8 {[%clk 0:01:07]} 23. Rfd1 {[%clk 0:01:46]}  Rxd3 {[%clk 0:01:01]} 24. Rxd3 {[%clk 0:01:47]}  Ke7 {[%clk 0:00:57]} 25. Qh3 {[%clk 0:00:57]}  Rd8 {[%clk 0:00:55]} 26. Bd7 {[%clk 0:00:52]}  Qc4 {[%clk 0:00:44]} 27. b3 {[%clk 0:00:46]}  Qf7 {[%clk 0:00:41]} 28. Na4 {[%clk 0:00:40]}  Ng6 {[%clk 0:00:22]} 29. Nc5 {[%clk 0:00:38]}  Nf8 {[%clk 0:00:21]} 30. Qf5 {[%clk 0:00:27]}  b6 {[%clk 0:00:13]} 31. Bxc6 {[%clk 0:00:05]}  bxc5 {[%clk 0:00:13]} 32. Bd5 {[%clk 0:00:01]}  Qg6 {[%clk 0:00:13]} 33. Qf3 {[%clk 0:00:01]}  Nd7 {[%clk 0:00:11]} 34. Qd1 {[%clk 0:00:01]}  Nb6 {[%clk 0:00:10]} 0-1


[Site "https://www.chess.com"]

[Event "Titled Tuesday Blitz March 29 Late 2022"]
[White "Quintiliano Pinto, Renato R."]
[Black "Kostiukov, Alexandr"]
[WhiteFideId "2117568"]
[BlackFideId "14108100"]
[WhiteElo "2439"]
[BlackElo "2202"]
[Result "1-0"]
[Round "01"]
[TimeControl "180+1"]
[Date "2022.03.30"]
[WhiteClock "0:00:43"]
[BlackClock "0:00:11"]

1. e4 {[%clk 0:02:31]}  c5 {[%clk 0:02:59]} 2. Nf3 {[%clk 0:02:29]}  g6 {[%clk 0:02:59]} 3. d4 {[%clk 0:02:29]}  cxd4 {[%clk 0:02:59]} 4. Nxd4 {[%clk 0:02:29]}  Bg7 {[%clk 0:03:00]} 5. c4 {[%clk 0:02:29]}  Nc6 {[%clk 0:03:00]} 6. Be3 {[%clk 0:02:27]}  Nf6 {[%clk 0:03:01]} 7. Nc3 {[%clk 0:02:27]}  O-O {[%clk 0:03:00]} 8. Be2 {[%clk 0:02:27]}  Nxd4 {[%clk 0:02:59]} 9. Bxd4 {[%clk 0:02:27]}  Qa5 {[%clk 0:03:00]} 10. O-O {[%clk 0:02:26]}  d6 {[%clk 0:03:00]} 11. a3 {[%clk 0:02:24]}  Be6 {[%clk 0:03:00]} 12. b4 {[%clk 0:02:18]}  Qd8 {[%clk 0:03:00]} 13. Rc1 {[%clk 0:02:17]}  a5 {[%clk 0:03:00]} 14. Re1 {[%clk 0:02:05]}  axb4 {[%clk 0:02:59]} 15. axb4 {[%clk 0:02:06]}  Ra3 {[%clk 0:02:42]} 16. Bf1 {[%clk 0:02:04]}  Nd7 {[%clk 0:02:14]} 17. Bxg7 {[%clk 0:01:56]}  Kxg7 {[%clk 0:02:15]} 18. Nb5 {[%clk 0:01:56]}  Ra2 {[%clk 0:02:09]} 19. Nd4 {[%clk 0:01:55]}  Ne5 {[%clk 0:02:02]} 20. Qb3 {[%clk 0:01:48]}  Qa8 {[%clk 0:01:52]} 21. Qg3 {[%clk 0:00:57]}  Rd2 {[%clk 0:01:27]} 22. Nf5+ {[%clk 0:00:54]}  Bxf5 {[%clk 0:01:16]} 23. exf5 {[%clk 0:00:55]}  Qa7 {[%clk 0:00:46]} 24. c5 {[%clk 0:00:54]}  Re8 {[%clk 0:00:21]} 25. Qf4 {[%clk 0:00:44]}  Qa2 {[%clk 0:00:16]} 26. cxd6 {[%clk 0:00:43]}  exd6 {[%clk 0:00:13]} 27. f6+ {[%clk 0:00:44]}  Kh8 {[%clk 0:00:11]} 28. Qh6 {[%clk 0:00:43]}  Rg8 {[%clk 0:00:11]} 29. Rc8 {[%clk 0:00:43]} 1-0


[Site "https://www.chess.com"]

[Event "Titled Tuesday Blitz March 29 Late 2022"]
[White "Rastbod, Ali"]
[Black "Jensen, Matthew R"]
[WhiteFideId "12567477"]
[BlackFideId "2018110"]
[WhiteElo "2200"]
[BlackElo "2302"]
[Result "1-0"]
[Round "01"]
[TimeControl "180+1"]
[Date "2022.03.30"]
[WhiteClock "0:00:40"]
[BlackClock "0:00:07"]

1. c4 {[%clk 0:02:57]}  c6 {[%clk 0:02:59]} 2. g3 {[%clk 0:02:57]}  d5 {[%clk 0:03:00]} 3. Nf3 {[%clk 0:02:58]}  e6 {[%clk 0:02:59]} 4. Bg2 {[%clk 0:02:58]}  f5 {[%clk 0:02:58]} 5. O-O {[%clk 0:02:58]}  Nf6 {[%clk 0:02:59]} 6. d3 {[%clk 0:02:58]}  Bd6 {[%clk 0:02:58]} 7. Nc3 {[%clk 0:02:59]}  O-O {[%clk 0:02:58]} 8. e4 {[%clk 0:02:55]}  dxe4 {[%clk 0:02:55]} 9. dxe4 {[%clk 0:02:56]}  Bc5 {[%clk 0:02:44]} 10. Qe2 {[%clk 0:02:48]}  Nbd7 {[%clk 0:02:40]} 11. e5 {[%clk 0:02:44]}  Ng4 {[%clk 0:02:35]} 12. h3 {[%clk 0:02:43]}  Nh6 {[%clk 0:02:15]} 13. Bxh6 {[%clk 0:02:42]}  gxh6 {[%clk 0:02:16]} 14. Rad1 {[%clk 0:02:43]}  Qe7 {[%clk 0:02:06]} 15. a3 {[%clk 0:02:43]}  a5 {[%clk 0:02:03]} 16. Na4 {[%clk 0:02:40]}  Ba7 {[%clk 0:02:00]} 17. Rd6 {[%clk 0:02:35]}  Bb8 {[%clk 0:01:45]} 18. c5 {[%clk 0:02:35]}  b5 {[%clk 0:01:06]} 19. cxb6 {[%clk 0:02:27]}  Bxd6 {[%clk 0:01:03]} 20. exd6 {[%clk 0:02:28]}  Qxd6 {[%clk 0:01:03]} 21. Rd1 {[%clk 0:02:28]}  Qe7 {[%clk 0:00:54]} 22. Ne5 {[%clk 0:02:28]}  Ba6 {[%clk 0:00:40]} 23. Nxc6 {[%clk 0:02:01]}  Bxe2 {[%clk 0:00:33]} 24. Nxe7+ {[%clk 0:02:00]}  Kf7 {[%clk 0:00:33]} 25. Rxd7 {[%clk 0:02:00]}  Bb5 {[%clk 0:00:29]} 26. Nc6+ {[%clk 0:00:59]}  Kf6 {[%clk 0:00:20]} 27. b7 {[%clk 0:00:53]}  Rab8 {[%clk 0:00:06]} 28. Nxb8 {[%clk 0:00:39]}  Rxb8 {[%clk 0:00:07]} 29. Nc5 {[%clk 0:00:40]} 1-0


[Site "https://www.chess.com"]

[Event "Titled Tuesday Blitz March 29 Late 2022"]
[White "Rytenko, Vsevolod"]
[Black "Goltsev, Dmitry"]
[WhiteFideId "14133040"]
[BlackFideId "24176710"]
[WhiteElo "2120"]
[BlackElo "2273"]
[Result "0-1"]
[Round "01"]
[TimeControl "180+1"]
[Date "2022.03.30"]
[WhiteClock "0:00:54"]
[BlackClock "0:00:09"]

1. e3 {[%clk 0:02:56]}  e6 {[%clk 0:02:58]} 2. Nf3 {[%clk 0:02:56]}  d5 {[%clk 0:02:58]} 3. c4 {[%clk 0:02:57]}  c5 {[%clk 0:02:58]} 4. a3 {[%clk 0:02:52]}  Nc6 {[%clk 0:02:58]} 5. d4 {[%clk 0:02:52]}  Nf6 {[%clk 0:02:58]} 6. Nc3 {[%clk 0:02:51]}  cxd4 {[%clk 0:02:58]} 7. exd4 {[%clk 0:02:51]}  dxc4 {[%clk 0:02:58]} 8. Bxc4 {[%clk 0:02:51]}  Bd6 {[%clk 0:02:58]} 9. O-O {[%clk 0:02:51]}  O-O {[%clk 0:02:58]} 10. Bg5 {[%clk 0:02:51]}  h6 {[%clk 0:02:58]} 11. Bh4 {[%clk 0:02:51]}  a6 {[%clk 0:02:56]} 12. Qe2 {[%clk 0:02:51]}  Be7 {[%clk 0:02:55]} 13. Rad1 {[%clk 0:02:51]}  b5 {[%clk 0:02:53]} 14. Ba2 {[%clk 0:02:49]}  Bb7 {[%clk 0:02:53]} 15. d5 {[%clk 0:02:49]}  exd5 {[%clk 0:02:52]} 16. Nxd5 {[%clk 0:02:49]}  Nxd5 {[%clk 0:02:51]} 17. Bxd5 {[%clk 0:02:45]}  Bxh4 {[%clk 0:02:38]} 18. Bxc6 {[%clk 0:02:28]}  Bxc6 {[%clk 0:02:32]} 19. Rxd8 {[%clk 0:02:28]}  Bxd8 {[%clk 0:02:33]} 20. Ne5 {[%clk 0:02:27]}  Re8 {[%clk 0:02:26]} 21. Qh5 {[%clk 0:02:24]}  Bd5 {[%clk 0:02:19]} 22. Rd1 {[%clk 0:02:19]}  Be6 {[%clk 0:01:58]} 23. h3 {[%clk 0:02:05]}  Bf6 {[%clk 0:01:54]} 24. Rd2 {[%clk 0:01:53]}  g6 {[%clk 0:01:44]} 25. Nxg6 {[%clk 0:01:48]}  fxg6 {[%clk 0:01:45]} 26. Qxg6+ {[%clk 0:01:47]}  Bg7 {[%clk 0:01:46]} 27. f4 {[%clk 0:01:36]}  Bf7 {[%clk 0:01:44]} 28. Qd3 {[%clk 0:01:35]}  Rac8 {[%clk 0:01:40]} 29. Qf5 {[%clk 0:01:28]}  Rc1+ {[%clk 0:01:33]} 30. Kh2 {[%clk 0:01:27]}  Rce1 {[%clk 0:01:25]} 31. Rd7 {[%clk 0:01:24]}  Be6 {[%clk 0:01:19]} 32. Rxg7+ {[%clk 0:01:24]}  Kxg7 {[%clk 0:01:17]} 33. Qd3 {[%clk 0:01:25]}  Bc4 {[%clk 0:01:10]} 34. Qd4+ {[%clk 0:01:20]}  Kg8 {[%clk 0:01:04]} 35. f5 {[%clk 0:01:16]}  R1e2 {[%clk 0:00:36]} 36. Qg4+ {[%clk 0:01:07]}  Kf7 {[%clk 0:00:32]} 37. Qg6+ {[%clk 0:01:05]}  Ke7 {[%clk 0:00:29]} 38. f6+ {[%clk 0:01:03]}  Kd7 {[%clk 0:00:24]} 39. f7 {[%clk 0:01:01]}  Rf8 {[%clk 0:00:22]} 40. b3 {[%clk 0:00:58]}  Bd5 {[%clk 0:00:08]} 41. Qxa6 {[%clk 0:00:53]}  Rxg2+ {[%clk 0:00:08]} 42. Kh1 {[%clk 0:00:54]}  Rg6+ {[%clk 0:00:09]} 0-1


[Site "https://www.chess.com"]

[Event "Titled Tuesday Blitz March 29 Late 2022"]
[White "Samarth, J Rao"]
[Black "De La Colina, Nicolas"]
[WhiteFideId "46652370"]
[BlackFideId "30946921"]
[WhiteElo "1514"]
[BlackElo "2046"]
[Result "0-1"]
[Round "01"]
[TimeControl "180+1"]
[Date "2022.03.30"]
[WhiteClock "0:00:01"]
[BlackClock "0:00:04"]

1. c4 {[%clk 0:02:59]}  g6 {[%clk 0:02:59]} 2. d4 {[%clk 0:02:34]}  Bg7 {[%clk 0:03:00]} 3. e4 {[%clk 0:02:29]}  d6 {[%clk 0:03:00]} 4. Nc3 {[%clk 0:02:28]}  Nf6 {[%clk 0:03:00]} 5. f4 {[%clk 0:02:28]}  O-O {[%clk 0:02:59]} 6. Nf3 {[%clk 0:02:27]}  c5 {[%clk 0:02:58]} 7. d5 {[%clk 0:02:28]}  e6 {[%clk 0:02:53]} 8. Be2 {[%clk 0:02:27]}  exd5 {[%clk 0:02:52]} 9. cxd5 {[%clk 0:02:28]}  Bg4 {[%clk 0:02:50]} 10. h3 {[%clk 0:02:27]}  Bxf3 {[%clk 0:02:49]} 11. Bxf3 {[%clk 0:02:28]}  Re8 {[%clk 0:02:35]} 12. O-O {[%clk 0:02:27]}  a6 {[%clk 0:02:30]} 13. a4 {[%clk 0:02:27]}  Nbd7 {[%clk 0:02:30]} 14. a5 {[%clk 0:02:26]}  Rc8 {[%clk 0:02:11]} 15. Re1 {[%clk 0:02:25]}  c4 {[%clk 0:02:05]} 16. Be3 {[%clk 0:02:22]}  Nc5 {[%clk 0:02:03]} 17. Bxc5 {[%clk 0:01:58]}  Rxc5 {[%clk 0:02:04]} 18. e5 {[%clk 0:01:56]}  Nd7 {[%clk 0:01:51]} 19. e6 {[%clk 0:01:53]}  Nf6 {[%clk 0:01:49]} 20. Qa4 {[%clk 0:01:34]}  Re7 {[%clk 0:01:25]} 21. g4 {[%clk 0:01:24]}  Ne8 {[%clk 0:01:16]} 22. Ne4 {[%clk 0:01:12]}  Rxd5 {[%clk 0:00:47]} 23. Ng5 {[%clk 0:00:38]}  Rxg5 {[%clk 0:00:19]} 24. exf7+ {[%clk 0:00:35]}  Kxf7 {[%clk 0:00:20]} 25. fxg5 {[%clk 0:00:32]}  Bd4+ {[%clk 0:00:17]} 26. Kg2 {[%clk 0:00:29]}  Be5 {[%clk 0:00:14]} 27. Qxc4+ {[%clk 0:00:28]}  Kg7 {[%clk 0:00:14]} 28. Qd5 {[%clk 0:00:19]}  Qd7 {[%clk 0:00:08]} 29. Rac1 {[%clk 0:00:17]}  Rf7 {[%clk 0:00:08]} 30. Rcd1 {[%clk 0:00:12]}  Qe7 {[%clk 0:00:07]} 31. Rd2 {[%clk 0:00:10]}  Qxg5 {[%clk 0:00:07]} 32. Rde2 {[%clk 0:00:10]}  Qf4 {[%clk 0:00:08]} 33. Rxe5 {[%clk 0:00:09]}  dxe5 {[%clk 0:00:09]} 34. Rxe5 {[%clk 0:00:08]}  Nf6 {[%clk 0:00:06]} 35. Qc5 {[%clk 0:00:06]}  Nd7 {[%clk 0:00:05]} 36. Re4 {[%clk 0:00:01]}  Qxf3+ {[%clk 0:00:04]} 0-1


[Site "https://www.chess.com"]

[Event "Titled Tuesday Blitz March 29 Late 2022"]
[White "Sanal, Vahap"]
[Black "Barbero Sendic, Alejandro"]
[WhiteFideId "6300545"]
[BlackFideId "3001288"]
[WhiteElo "2603"]
[BlackElo "2314"]
[Result "0-1"]
[Round "01"]
[TimeControl "180+1"]
[Date "2022.03.29"]
[WhiteClock "0:01:56"]
[BlackClock "0:01:16"]

1. e4 {[%clk 0:03:00]}  c5 {[%clk 0:02:58]} 2. Nf3 {[%clk 0:03:01]}  Nc6 {[%clk 0:02:58]} 3. d4 {[%clk 0:02:59]}  cxd4 {[%clk 0:02:58]} 4. Nxd4 {[%clk 0:02:59]}  e5 {[%clk 0:02:58]} 5. Nb5 {[%clk 0:02:58]}  d6 {[%clk 0:02:56]} 6. c4 {[%clk 0:02:54]}  Be6 {[%clk 0:02:55]} 7. Be2 {[%clk 0:02:52]}  Nf6 {[%clk 0:02:51]} 8. N1c3 {[%clk 0:02:50]}  a6 {[%clk 0:02:50]} 9. Na3 {[%clk 0:02:50]}  g6 {[%clk 0:02:50]} 10. O-O {[%clk 0:02:50]}  Bg7 {[%clk 0:02:51]} 11. Nc2 {[%clk 0:02:48]}  O-O {[%clk 0:02:50]} 12. b3 {[%clk 0:02:45]}  Rc8 {[%clk 0:02:47]} 13. Ba3 {[%clk 0:02:44]}  Nd4 {[%clk 0:02:43]} 14. Nxd4 {[%clk 0:02:29]}  exd4 {[%clk 0:02:42]} 15. Nd5 {[%clk 0:02:23]}  Nxe4 {[%clk 0:02:40]} 16. Bf3 {[%clk 0:02:18]}  Bxd5 {[%clk 0:02:27]} 17. cxd5 {[%clk 0:02:18]}  Re8 {[%clk 0:02:12]} 18. Bb2 {[%clk 0:02:14]}  Nc3 {[%clk 0:02:10]} 19. Qd3 {[%clk 0:02:14]}  Qa5 {[%clk 0:02:03]} 20. g3 {[%clk 0:02:14]}  Nxd5 {[%clk 0:01:59]} 21. Bxd4 {[%clk 0:02:04]}  Nb4 {[%clk 0:01:38]} 22. Qd2 {[%clk 0:02:04]}  Bxd4 {[%clk 0:01:21]} 23. Qxd4 {[%clk 0:02:04]}  Nc2 {[%clk 0:01:21]} 24. Qxd6 {[%clk 0:02:05]}  Nxa1 {[%clk 0:01:21]} 25. Rxa1 {[%clk 0:02:06]}  Qc3 {[%clk 0:01:21]} 26. Qd1 {[%clk 0:01:56]}  Rcd8 {[%clk 0:01:16]} 0-1


[Site "https://www.chess.com"]

[Event "Titled Tuesday Blitz March 29 Late 2022"]
[White "Sapunov, Evgeny"]
[Black "Estrada Nieto, Julian"]
[WhiteFideId "4126661"]
[BlackFideId "5101018"]
[WhiteElo "2470"]
[BlackElo "2246"]
[Result "1-0"]
[Round "01"]
[TimeControl "180+1"]
[Date "2022.03.30"]
[WhiteClock "0:01:50"]
[BlackClock "0:00:23"]

1. c4 {[%clk 0:02:58]}  e5 {[%clk 0:02:59]} 2. Nf3 {[%clk 0:02:58]}  Nc6 {[%clk 0:02:58]} 3. Nc3 {[%clk 0:02:57]}  Nf6 {[%clk 0:02:57]} 4. e3 {[%clk 0:02:58]}  Bb4 {[%clk 0:02:56]} 5. Qc2 {[%clk 0:02:58]}  Bxc3 {[%clk 0:02:55]} 6. Qxc3 {[%clk 0:02:58]}  Qe7 {[%clk 0:02:55]} 7. a3 {[%clk 0:02:59]}  a5 {[%clk 0:02:48]} 8. d3 {[%clk 0:02:57]}  d5 {[%clk 0:02:46]} 9. cxd5 {[%clk 0:02:57]}  Nxd5 {[%clk 0:02:46]} 10. Qb3 {[%clk 0:02:58]}  Nb6 {[%clk 0:02:44]} 11. Qc2 {[%clk 0:02:58]}  O-O {[%clk 0:02:43]} 12. b3 {[%clk 0:02:58]}  Bg4 {[%clk 0:02:42]} 13. Be2 {[%clk 0:02:58]}  f5 {[%clk 0:02:40]} 14. Bb2 {[%clk 0:02:59]}  Rad8 {[%clk 0:02:31]} 15. O-O {[%clk 0:02:58]}  e4 {[%clk 0:02:28]} 16. dxe4 {[%clk 0:02:58]}  fxe4 {[%clk 0:02:28]} 17. Nd4 {[%clk 0:02:57]}  Nxd4 {[%clk 0:02:21]} 18. Bxd4 {[%clk 0:02:57]}  Bxe2 {[%clk 0:02:21]} 19. Qxe2 {[%clk 0:02:57]}  Nd5 {[%clk 0:01:59]} 20. Rfc1 {[%clk 0:02:43]}  c6 {[%clk 0:01:51]} 21. Bc5 {[%clk 0:02:42]}  Qg5 {[%clk 0:01:45]} 22. Bxf8 {[%clk 0:02:40]}  Rxf8 {[%clk 0:01:45]} 23. Rc4 {[%clk 0:02:34]}  Qe5 {[%clk 0:01:28]} 24. Rac1 {[%clk 0:02:30]}  h6 {[%clk 0:01:27]} 25. h3 {[%clk 0:02:28]}  Kh8 {[%clk 0:01:14]} 26. Qc2 {[%clk 0:02:27]}  Re8 {[%clk 0:01:12]} 27. Rd1 {[%clk 0:02:25]}  Re6 {[%clk 0:01:00]} 28. Rdd4 {[%clk 0:02:22]}  Nf6 {[%clk 0:00:55]} 29. Rc5 {[%clk 0:02:11]}  Nd5 {[%clk 0:00:53]} 30. Rxa5 {[%clk 0:02:08]}  Qf5 {[%clk 0:00:47]} 31. Rc5 {[%clk 0:02:05]}  Re5 {[%clk 0:00:37]} 32. b4 {[%clk 0:02:02]}  Qg6 {[%clk 0:00:25]} 33. b5 {[%clk 0:01:51]}  Ne7 {[%clk 0:00:23]} 34. Rxe5 {[%clk 0:01:50]} 1-0


[Site "https://www.chess.com"]

[Event "Titled Tuesday Blitz March 29 Late 2022"]
[White "Stanisz, Patryk"]
[Black "Rosen, Eric"]
[WhiteFideId "1123106"]
[BlackFideId "2032562"]
[WhiteElo "1876"]
[BlackElo "2362"]
[Result "0-1"]
[Round "01"]
[TimeControl "180+1"]
[Date "2022.03.30"]
[WhiteClock "0:00:01"]
[BlackClock "0:01:42"]

1. d4 {[%clk 0:02:59]}  d5 {[%clk 0:02:51]} 2. c4 {[%clk 0:02:59]}  e6 {[%clk 0:02:50]} 3. Nc3 {[%clk 0:02:59]}  Nf6 {[%clk 0:02:48]} 4. Nf3 {[%clk 0:03:00]}  a6 {[%clk 0:02:46]} 5. cxd5 {[%clk 0:02:56]}  exd5 {[%clk 0:02:47]} 6. Bg5 {[%clk 0:02:56]}  c6 {[%clk 0:02:42]} 7. e3 {[%clk 0:02:56]}  Be7 {[%clk 0:02:42]} 8. h3 {[%clk 0:02:54]}  O-O {[%clk 0:02:42]} 9. Bd3 {[%clk 0:02:54]}  Nbd7 {[%clk 0:02:40]} 10. O-O {[%clk 0:02:54]}  Re8 {[%clk 0:02:37]} 11. Rb1 {[%clk 0:02:48]}  Nf8 {[%clk 0:02:33]} 12. b4 {[%clk 0:02:48]}  Ng6 {[%clk 0:02:30]} 13. a4 {[%clk 0:02:47]}  Bd6 {[%clk 0:02:29]} 14. b5 {[%clk 0:02:43]}  axb5 {[%clk 0:02:30]} 15. axb5 {[%clk 0:02:44]}  h6 {[%clk 0:02:30]} 16. bxc6 {[%clk 0:01:45]}  bxc6 {[%clk 0:02:26]} 17. Bxf6 {[%clk 0:01:33]}  Qxf6 {[%clk 0:02:26]} 18. Nh2 {[%clk 0:01:09]}  Nh4 {[%clk 0:02:21]} 19. Ng4 {[%clk 0:00:50]}  Qg5 {[%clk 0:02:18]} 20. f4 {[%clk 0:00:47]}  Qe7 {[%clk 0:02:03]} 21. Re1 {[%clk 0:00:25]}  Ra3 {[%clk 0:01:57]} 22. Rb3 {[%clk 0:00:22]}  Rxb3 {[%clk 0:01:49]} 23. Qxb3 {[%clk 0:00:23]}  Bxf4 {[%clk 0:01:49]} 24. Ne5 {[%clk 0:00:01]}  Bxe5 {[%clk 0:01:46]} 25. dxe5 {[%clk 0:00:02]}  Qxe5 {[%clk 0:01:46]} 26. Na4 {[%clk 0:00:02]}  Qg3 {[%clk 0:01:44]} 27. Qc2 {[%clk 0:00:01]}  Qxe1+ {[%clk 0:01:44]} 28. Kh2 {[%clk 0:00:01]}  Rxe3 {[%clk 0:01:42]} 0-1


[Site "https://www.chess.com"]